Workbook

Sheet дт02-98
A2: Ведомость по отгрузке за февраль
A5: № | B5: Дата | C5: Марка | D5: Коли- | E5: Отгрузочные | H5: Товарная продукция | K5: Налог на | L5: НДС | M5: Сумма к оплате | N5: Железно- | O5: Сбор за | P5: Услуги | Q5: Услуги по | R5: НДС | S5: Сумма к оплате | T5: Приме-
A6: п/п | B6: отгрузки | C6: отгр. | D6: чество | E6: реквизиты | G6: факт. | H6: факт. | I6: отпус- | J6: стоимость | K6: реализа- | L6: на товарную | M6: за товарную | N6: дорожный | O6: выделе- | P6: по подаче | Q6: наливу и | R6: на услуги | S6: за услуги | T6: чание
C7: прод. | D7: тн | F7: Кол-во | G7: с/ст-ть | H7: с/стоимость | I7: кная це- | J7: всего | K7: цию ГСМ | L7: продукцию | M7: продукцию | N7: тариф | O7: ние пла- | Q7: транспор- | R7: 20%
E8: Получатель | F8: цис- | G8: 1 тн | H8: всего | I8: на 1 тн | J8: объема | K8: 0.35 | O8: на | Q8: тировке
F9: терн | H9: объема
A10: 1 | B10: 2 | C10: 3 | D10: 4 | E10: 5 | F10: 6 | G10: 7 | H10: 8 | I10: 9 | J10: 10 | K10: 11 | L10: 12 | M10: 13 | N10: 14 | O10: 15 | Q10: 16 | R10: 17 | S10: 18 | T10: 19
A11: ООО-1
A12: 421 | B12: 16.02 | C12: . | D12: 15.6 | I12: 1000 | J12: =D12*I12 -> 15600 | K12: =J12*35% -> 5460 | L12: =J12*20% -> 3120 | M12: =J12+K12+L12 -> 24180
A14: ООО-2
A15: 1259 | B15: 13.02 | C15: . | D15: 41.4 | I15: 1032.4 | J15: =D15*I15 -> 42741.36 | K15: =J15*35% -> 14959.476 | L15: 8548.272 | M15: 66249.108
A16: 1282 | B16: 4.02 | D16: 60.6 | I16: 1032.4 | J16: =D16*I16 -> 62563.44 | K16: =J16*35% -> 21897.204 | L16: 12512.688 | M16: 96973.332
B17: итого | D17: =SUM(D15:D16) -> 102 | I17: 1032.4 | J17: =SUM(J15:J16) -> 105304.8 | K17: =SUM(K15:K16) -> 36856.68 | L17: =SUM(L15:L16) -> 21060.96 | M17: =SUM(M15:M16) -> 163222.44
A20: ООО-3
A21: 1262 | B21: 27.02 | C21: . | D21: 27.2 | I21: 1100.5 | J21: =D21*I21 -> 29933.6 | K21: =J21*35% -> 10476.76 | L21: =J21*20% -> 5986.72 | M21: =J21+K21+L21 -> 46397.08
A23: ООО-4
A24: 1264 | B24: 5.02 | C24: . | D24: 31.8 | I24: 896.77 | J24: =D24*I24 -> 28517.286 | K24: =J24*35% -> 9981.0501 | L24: =J24*20% -> 5703.4572 | M24: =J24+K24+L24 -> 44201.7933

Sheet пр02-98
A2: Ведомость по отгрузке за февраль
A5: № | B5: Дата | C5: Марка | D5: Коли- | E5: Отгрузочные | H5: Товарная продукция | K5: Налог на | L5: НДС | M5: Сумма к оплате | N5: Железно- | O5: Сбор за | P5: Услуги | Q5: Услуги по | R5: НДС | S5: Сумма к оплате | T5: Приме-
A6: п/п | B6: отгрузки | C6: отгр. | D6: чество | E6: реквизиты | G6: факт. | H6: факт. | I6: отпус- | J6: стоимость | K6: реализа- | L6: на товарную | M6: за товарную | N6: дорожный | O6: выделе- | P6: по подаче | Q6: наливу и | R6: на услуги | S6: за услуги | T6: чание
C7: прод. | D7: тн | F7: Кол-во | G7: с/ст-ть | H7: с/стоимость | I7: кная це- | J7: всего | K7: цию ГСМ | L7: продукцию | M7: продукцию | N7: тариф | O7: ние пла- | Q7: транспор- | R7: 20%
E8: Получатель | F8: цис- | G8: 1 тн | H8: всего | I8: на 1 тн | J8: объема | K8: 0.35 | O8: на | Q8: тировке
F9: терн | H9: объема
A10: 1 | B10: 2 | C10: 3 | D10: 4 | E10: 5 | F10: 6 | G10: 7 | H10: 8 | I10: 9 | J10: 10 | K10: 11 | L10: 12 | M10: 13 | N10: 14 | O10: 15 | Q10: 16 | R10: 17 | S10: 18 | T10: 19
A12: ООО-5
A13: 1308 | B13: 28.02 | C13: прямог.б. | D13: 69474 | I13: 489.93 | J13: =I13*D13 -> 34037396.82 | L13: =J13*20% -> 6807479.364 | M13: =J13+L13 -> 40844876.18
A14: 1272 | B14: 9.02 | C14: тяж.бензин | D14: 331.519 | I14: 1000 | J14: =I14*D14 -> 331519 | L14: =J14*20% -> 66303.8 | M14: =J14+L14 -> 397822.8
A18: ООО-6
A19: 1297 | B19: 28.02 | C19: тяж.бензин | D19: 4848 | I19: 791.67 | J19: =I19*D19 -> 3838016.16 | L19: =J19*20% -> 767603.232 | M19: =J19+L19 -> 4605619.392
A20: 1298 | B20: 28.02 | C20: ВУФ | D20: 5107 | I20: 441.67 | J20: =I20*D20 -> 2255608.69 | L20: =J20*20% -> 451121.738 | M20: =J20+L20 -> 2706730.428

Sheet м03-98
A2: Ведомость по отгрузке за февраль
A5: № | B5: Дата | C5: Марка | D5: Коли- | E5: Отгрузочные | H5: Товарная продукция | K5: НДС | L5: Сумма к оплате | M5: Железно- | N5: Сбор за | O5: Услуги | P5: Услуги по | Q5: НДС | R5: Сумма к оплате | S5: Приме-
A6: п/п | B6: отгрузки | C6: отгр. | D6: чество | E6: реквизиты | G6: факт. | H6: факт. | I6: отпус- | J6: стоимость | K6: на товарную | L6: за товарную | M6: дорожный | N6: выделе- | O6: по подаче | P6: наливу и | Q6: на услуги | R6: за услуги | S6: чание
C7: прод. | D7: тн | F7: Кол-во | G7: с/ст-ть | H7: с/стоимость | I7: кная це- | J7: всего | K7: продукцию | L7: продукцию | M7: тариф | N7: ние пла- | P7: транспор- | Q7: 20%
E8: Получатель | F8: цис- | G8: 1 тн | H8: всего | I8: на 1 тн | J8: объема | N8: на | P8: тировке
F9: терн | H9: объема
A10: 1 | B10: 2 | C10: 3 | D10: 4 | E10: 5 | F10: 6 | G10: 7 | H10: 8 | I10: 9 | J10: 10 | K10: 11 | L10: 12 | M10: 13 | N10: 14 | O10: 15 | P10: 16 | Q10: 17 | R10: 18 | S10: 19
A11: ООО-7
A12: 1409 | B12: 1.03 | D12: 56.068 | F12: 1 | I12: 433.33 | J12: =I12*D12 -> 24295.94644 | K12: =J12*20% -> 4859.189288 | L12: 29155.13573 | M12: 4555.4 | N12: =275.8*F12 -> 275.8 | O12: =3.06*D12 -> 171.56808 | P12: 468.1678 | Q12: =(M12+N12+O12+P12)*20% -> 1094.187176 | R12: =M12+N12+O12+P12+Q12 -> 6565.123056
A13: 1410 | B13: 1.03 | D13: 60 | F13: 1 | I13: 433.33 | J13: 25999.8 | K13: 5199.96 | L13: 31199.76 | M13: 4276.8 | N13: 275.8 | O13: 183.6 | P13: 501 | Q13: 1047.44 | R13: 6284.64
A14: 1440 | B14: 3.03 | D14: 1169.481 | F14: 20 | I14: 433.33 | J14: 506771.2017 | K14: 101354.2403 | L14: 608125.4421 | M14: 135129.6 | N14: 5516 | O14: 3578.61186 | P14: 9765.16635 | Q14: 30797.87564 | R14: 184787.2539
A15: 1473 | B15: 5.03 | D15: 56.129 | F15: 1 | I15: 433.33 | J15: 24322.37957 | K15: 4864.475914 | L15: 29186.85548 | M15: 6115 | N15: 275.8 | O15: 171.75474 | P15: 468.67715 | Q15: 1406.246378 | R15: 8437.478268
A16: 1474 | B16: 5.03 | D16: 172.258 | F16: 3 | I16: 433.33 | J16: 74644.55914 | K16: 14928.91183 | L16: 89573.47097 | M16: 13906 | N16: 827.4 | O16: 527.10948 | P16: 1438.3543 | Q16: 3339.772756 | R16: 20038.63654
A17: 1475 | B17: 5.03 | D17: 1032.998 | F17: 17 | I17: 433.33 | J17: 447629.0233 | K17: 89525.80467 | L17: 537154.828 | M17: 76978.2 | N17: 4688.6 | O17: 3160.97388 | P17: 8625.5333 | Q17: 18690.66144 | R17: 112143.9686
A18: 1476 | B18: 5.03 | D18: 171.936 | F18: 3 | I18: 433.33 | J18: 74505.02688 | K18: 14901.00538 | L18: 89406.03226 | M18: 17936.7 | N18: 827.4 | O18: 526.12416 | P18: 1435.6656 | Q18: 4145.177952 | R18: 24871.06771
A19: 1481 | B19: 5.03 | D19: 422.628 | F19: 7 | I19: 433.33 | J19: 183137.3912 | K19: 36627.47825 | L19: 219764.8695 | M19: 40793.8 | N19: 1930.6 | O19: 1293.24168 | P19: 3528.9438 | Q19: 9509.317096 | R19: 57055.90258
A20: 1482 | B20: 5.03 | D20: 232.258 | F20: 4 | I20: 433.33 | J20: 100644.3591 | K20: 20128.87183 | L20: 120773.231 | M20: 0 | N20: 1103.2 | O20: 710.70948 | P20: 1939.3543 | Q20: 750.652756 | R20: 4503.916536
A21: 1483 | B21: 5.03 | D21: 60 | F21: 1 | I21: 433.33 | J21: 25999.8 | K21: 5199.96 | L21: 31199.76 | M21: 4795.2 | N21: 275.8 | O21: 183.6 | P21: 501 | Q21: 1151.12 | R21: 6906.72
A22: 1484 | B22: 5.03 | D22: 56.129 | F22: 1 | I22: 433.33 | J22: 24322.37957 | K22: 4864.475914 | L22: 29186.85548 | M22: 4555.4 | N22: 275.8 | O22: 171.75474 | P22: 468.67715 | Q22: 1094.326378 | R22: 6565.958268
A23: 1491 | B23: 5.03 | D23: 236.129 | F23: 4 | I23: 433.33 | J23: 102321.7796 | K23: 20464.35591 | L23: 122786.1355 | M23: 48803 | N23: 1103.2 | O23: 722.55474 | P23: 1971.67715 | Q23: 10520.08638 | R23: 63120.51827
A24: 1496 | B24: 6.03 | D24: 236.012 | F24: 4 | I24: 433.33 | J24: 102271.08 | K24: 20454.21599 | L24: 122725.296 | M24: 20818.1 | N24: 1103.2 | O24: 722.19672 | P24: 1970.7002 | Q24: 4922.839384 | R24: 29537.0363
A25: 1528 | B25: 8.03 | D25: 1506.112 | F25: 21 | I25: 433.33 | J25: 652643.513 | K25: 130528.7026 | L25: 783172.2156 | M25: 107989.1 | N25: 5791.8 | O25: 4608.70272 | P25: 12576.0352 | Q25: 26193.12758 | R25: 157158.7655
A26: 1628 | B26: 12.03 | D26: 291.071 | F26: 5 | I26: 433.33 | J26: 126129.7964 | K26: 25225.95929 | L26: 151355.7557 | M26: 19972.8 | N26: 1379 | O26: 890.67726 | P26: 2430.44285 | Q26: 4934.584022 | R26: 29607.50413
A27: 1629 | B27: 12.03 | D27: 309.047 | F27: 5 | I27: 433.33 | J27: 133919.3365 | K27: 26783.8673 | L27: 160703.2038 | M27: 24775.2 | N27: 1379 | O27: 945.68382 | P27: 2580.54245 | Q27: 5936.085254 | R27: 35616.51152
A28: 1630 | B28: 13.03 | D28: 59.885 | F28: 1 | I28: 433.33 | J28: 25949.96705 | K28: 5189.99341 | L28: 31139.96046 | M28: 5486.4 | N28: 275.8 | O28: 183.2481 | P28: 500.03975 | Q28: 1289.09757 | R28: 7734.58542
A29: 1810 | B29: 20.03 | D29: 308.756 | F29: 5 | I29: 433.33 | J29: 133793.2375 | K29: 26758.6475 | L29: 160551.885 | M29: 63835.1 | N29: 1379 | O29: 944.79336 | P29: 2578.1126 | Q29: 13747.40119 | R29: 82484.40715
A30: 1811 | B30: 20.03 | D30: 288.963 | F30: 5 | I30: 433.33 | J30: 125216.3368 | K30: 25043.26736 | L30: 150259.6041 | M30: 23256.6 | N30: 1379 | O30: 884.22678 | P30: 2412.84105 | Q30: 5586.533566 | R30: 33519.2014
A31: 1842 | B31: 21.03 | D31: 1030.914 | F31: 18 | I31: 433.33 | J31: 446725.9636 | K31: 89345.19272 | L31: 536071.1563 | M31: 183456 | N31: 4964.4 | O31: 3154.59684 | P31: 8608.1319 | Q31: 40036.62575 | R31: 240219.7545
A32: 1903 | B32: 22.03 | D32: 969.127 | F32: 16 | I32: 433.33 | J32: 419951.8029 | K32: 83990.36058 | L32: 503942.1635 | M32: 171990 | N32: 4412.8 | O32: 2965.52862 | P32: 8092.21045 | Q32: 37492.10781 | R32: 224952.6469
A33: 1909 | B33: 22.03 | D33: 2823.369 | F33: 48 | I33: 433.33 | J33: 1223450.489 | K33: 244690.0978 | L33: 1468140.587 | M33: 327628.8 | N33: 13238.4 | O33: 8639.50914 | P33: 23575.13115 | Q33: 74616.36806 | R33: 447698.2083
A34: 1927 | B34: 22.03 | D34: 1051.905 | F34: 18 | I34: 433.33 | J34: 455821.9936 | K34: 91164.39873 | L34: 546986.3924 | M34: 121766.4 | N34: 4964.4 | O34: 3218.8293 | P34: 8783.40675 | Q34: 27746.60721 | R34: 166479.6433
A35: 1977 | B35: 25.03 | D35: 475.537 | F35: 8 | I35: 433.33 | J35: 206064.4482 | K35: 41212.88964 | L35: 247277.3379 | M35: 38121.8 | N35: 2206.4 | O35: 1455.14322 | P35: 3970.73395 | Q35: 9150.815434 | R35: 54904.8926
A36: 2040 | B36: 26.03 | D36: 65.255 | F36: 1 | I36: 433.33 | J36: 28276.94915 | K36: 5655.38983 | L36: 33932.33898 | M36: 4514.4 | N36: 275.8 | O36: 199.6803 | P36: 544.87925 | Q36: 1106.95191 | R36: 6641.71146
A37: 2041 | B37: 26.03 | D37: 60 | F37: 1 | I37: 433.33 | J37: 25999.8 | K37: 5199.96 | L37: 31199.76 | M37: 4104 | N37: 275.8 | O37: 183.6 | P37: 501 | Q37: 1012.88 | R37: 6077.28
A38: 2049 | B38: 26.03 | D38: 65.255 | F38: 1 | I38: 433.33 | J38: 28276.94915 | K38: 5655.38983 | L38: 33932.33898 | M38: 5274.7 | N38: 275.8 | O38: 199.6803 | P38: 544.87925 | Q38: 1259.01191 | R38: 7554.07146
A39: 2065 | B39: 27.03 | D39: 704.202 | F39: 6 | I39: 433.33 | J39: 305151.8527 | K39: 61030.37053 | L39: 366182.2232 | M39: 48427.2 | N39: 1654.8 | O39: 2154.85812 | P39: 5880.0867 | Q39: 11623.38896 | R39: 69740.33378
A40: 2072 | B40: 27.03 | D40: 117.367 | F40: 1 | I40: 433.33 | J40: 50858.64211 | K40: 10171.72842 | L40: 61030.37053 | M40: 11299.7 | N40: 275.8 | O40: 359.14302 | P40: 980.01445 | Q40: 2582.931494 | R40: 15497.58896
A41: 2073 | B41: 27.03 | D41: 117.367 | F41: 1 | I41: 433.33 | J41: 50858.64211 | K41: 10171.72842 | L41: 61030.37053 | M41: 11299.7 | N41: 275.8 | O41: 359.14302 | P41: 980.01445 | Q41: 2582.931494 | R41: 15497.58896
A42: 2086 | B42: 28.03 | D42: 486 | F42: 8 | I42: 433.33 | J42: 210598.38 | K42: 42119.676 | L42: 252718.056 | M42: 74533 | N42: 2206.4 | O42: 1487.16 | P42: 4058.1 | Q42: 16456.932 | R42: 98741.592
A43: 2087 | B43: 28.03 | D43: 227.703 | F43: 4 | I43: 433.33 | J43: 98670.54099 | K43: 19734.1082 | L43: 118404.6492 | M43: 65577.5 | N43: 1103.2 | O43: 696.77118 | P43: 1901.32005 | Q43: 13855.75825 | R43: 83134.54948
A44: 2088 | B44: 28.03 | D44: 296.008 | F44: 5 | I44: 433.33 | J44: 128269.1466 | K44: 25653.82933 | L44: 153922.976 | M44: 20314.8 | N44: 1379 | O44: 905.78448 | P44: 2471.6668 | Q44: 5014.250256 | R44: 30085.50154
A45: 2095 | B45: 28.03 | D45: 60 | F45: 1 | I45: 433.33 | J45: 25999.8 | K45: 5199.96 | L45: 31199.76 | M45: 3369.6 | N45: 275.8 | O45: 183.6 | P45: 501 | Q45: 866 | R45: 5196
A46: 2096 | B46: 28.03 | D46: 56.008 | F46: 1 | I46: 433.33 | J46: 24269.94664 | K46: 4853.989328 | L46: 29123.93597 | M46: 3201.1 | N46: 275.8 | O46: 171.38448 | P46: 467.6668 | Q46: 823.190256 | R46: 4939.141536
A47: 2097 | B47: 28.03 | D47: 60 | F47: 1 | I47: 433.33 | J47: 25999.8 | K47: 5199.96 | L47: 31199.76 | M47: 11145.6 | N47: 275.8 | O47: 183.6 | P47: 501 | Q47: 2421.2 | R47: 14527.2
A48: 2098 | B48: 28.03 | D48: 56.008 | F48: 1 | I48: 433.33 | J48: 24269.94664 | K48: 4853.989328 | L48: 29123.93597 | M48: 10588.3 | N48: 275.8 | O48: 171.38448 | P48: 467.6668 | Q48: 2300.630256 | R48: 13803.78154
A49: 2099 | B49: 28.03 | D49: 60 | F49: 1 | I49: 433.33 | J49: 25999.8 | K49: 5199.96 | L49: 31199.76 | M49: 7732.8 | N49: 275.8 | O49: 183.6 | P49: 501 | Q49: 1738.64 | R49: 10431.84
A50: 2100 | B50: 28.03 | D50: 56.008 | F50: 1 | I50: 433.33 | J50: 24269.94664 | K50: 4853.989328 | L50: 29123.93597 | M50: 7346.2 | N50: 275.8 | O50: 171.38448 | P50: 467.6668 | Q50: 1652.210256 | R50: 9913.261536
A51: 2113 | B51: 29.03 | D51: 409.513 | F51: 7 | I51: 433.33 | J51: 177454.2683 | K51: 35490.85366 | L51: 212945.1219 | M51: 23138 | N51: 1930.6 | O51: 1253.10978 | P51: 3419.43355 | Q51: 5948.228666 | R51: 35689.372
A52: 2114 | B52: 29.03 | D52: 1651.432 | F52: 19 | I52: 433.33 | J52: 715615.0286 | K52: 143123.0057 | L52: 858738.0343 | M52: 123105.9 | N52: 5240.2 | O52: 5053.38192 | P52: 13789.4572 | Q52: 29437.78782 | R52: 176626.7269
A53: 2121 | B53: 29.03 | D53: 349.601 | F53: 6 | I53: 433.33 | J53: 151492.6013 | K53: 30298.52027 | L53: 181791.1216 | M53: 26104.4 | N53: 1654.8 | O53: 1069.77906 | P53: 2919.16835 | Q53: 6349.629482 | R53: 38097.77689
A54: 2122 | B54: 29.03 | D54: 179.349 | F54: 3 | I54: 433.33 | J54: 77717.30217 | K54: 15543.46043 | L54: 93260.7626 | M54: 14385.6 | N54: 827.4 | O54: 548.80794 | P54: 1497.56415 | Q54: 3451.874418 | R54: 20711.24651
A55: 2133 | B55: 29.03 | D55: 59.885 | F55: 1 | I55: 433.33 | J55: 25949.96705 | K55: 5189.99341 | L55: 31139.96046 | M55: 2462.4 | N55: 275.8 | O55: 183.2481 | P55: 500.03975 | Q55: 684.29757 | R55: 4105.78542
A56: 2134 | B56: 29.03 | D56: 59.732 | F56: 1 | I56: 433.33 | J56: 25883.66756 | K56: 5176.733512 | L56: 31060.40107 | M56: 4104 | N56: 275.8 | O56: 182.77992 | P56: 498.7622 | Q56: 1012.268424 | R56: 6073.610544
A57: 2135 | B57: 29.03 | D57: 59.885 | F57: 1 | I57: 433.33 | J57: 25949.96705 | K57: 5189.99341 | L57: 31139.96046 | M57: 4449.6 | N57: 275.8 | O57: 183.2481 | P57: 500.03975 | Q57: 1081.73757 | R57: 6490.42542
A58: 2138 | B58: 30.03 | D58: 476.535 | F58: 8 | I58: 433.33 | J58: 206496.9115 | K58: 41299.38231 | L58: 247796.2939 | M58: 45773.4 | N58: 2206.4 | O58: 1458.1971 | P58: 3979.06725 | Q58: 10683.41287 | R58: 64100.47722
A59: 2139 | B59: 30.03 | D59: 412.748 | F59: 4 | I59: 433.33 | J59: 178856.0908 | K59: 35771.21817 | L59: 214627.309 | M59: 34577.4 | N59: 1103.2 | O59: 1263.00888 | P59: 3446.4458 | Q59: 8078.010936 | R59: 48468.06562
A60: 2158 | B60: 30.03 | D60: 55.708 | F60: 1 | I60: 433.33 | J60: 24139.94764 | K60: 4827.989528 | L60: 28967.93717 | M60: 6451.2 | N60: 275.8 | O60: 170.46648 | P60: 465.1618 | Q60: 1472.525656 | R60: 8835.153936
A61: 2159 | B61: 30.03 | D61: 117.621 | F61: 1 | I61: 433.33 | J61: 50968.70793 | K61: 10193.74159 | L61: 61162.44952 | M61: 13593.6 | N61: 275.8 | O61: 359.92026 | P61: 982.13535 | Q61: 3042.291122 | R61: 18253.74673
A62: 2161 | B62: 30.03 | D62: 117.621 | F62: 1 | I62: 433.33 | J62: 50968.70793 | K62: 10193.74159 | L62: 61162.44952 | M62: 11299.7 | N62: 275.8 | O62: 359.92026 | P62: 982.13535 | Q62: 2583.511122 | R62: 15501.06673
A63: 2162 | B63: 30.03 | D63: 117.621 | F63: 1 | I63: 433.33 | J63: =I63*D63 -> 50968.70793 | K63: 10193.74159 | L63: 61162.44952 | M63: 11299.7 | N63: =275.8*F63 -> 275.8 | O63: =3.06*D63 -> 359.92026 | P63: 982.13535 | Q63: =(M63+N63+O63+P63)*20% -> 2583.511122 | R63: =M63+N63+O63+P63+Q63 -> 15501.06673
B64: итого | D64: =SUM(D12:D63) -> 19631.144 | J64: =SUM(J12:J63) -> 8506763.63 | K64: 1701352.726 | L64: 10208116.36 | M64: 2076414.9 | N64: 84119 | O64: 60071.30064 | P64: 163920.0524 | Q64: 476905.0506 | R64: 2861430.304
A66: ООО-8
A67: 1780 | B67: 18.03 | D67: 534.482 | F67: 9 | I67: 450 | J67: =I67*D67 -> 240516.9 | K67: 48103.38 | L67: 288620.28 | M67: 137001.6 | N67: =275.8*F67 -> 2482.2 | O67: =3.06*D67 -> 1635.51492 | P67: 4462.9247 | Q67: =(M67+N67+O67+P67)*20% -> 29116.44792 | R67: =M67+N67+O67+P67+Q67 -> 174698.6875
A68: 1779 | B68: 18.03 | D68: 536.359 | F68: 9 | I68: 450 | J68: =I68*D68 -> 241361.55 | K68: 48272.31 | L68: 289633.86 | M68: 142935.9 | N68: =275.8*F68 -> 2482.2 | O68: =3.06*D68 -> 1641.25854 | P68: 4478.59765 | Q68: =(M68+N68+O68+P68)*20% -> 30307.59124 | R68: =M68+N68+O68+P68+Q68 -> 181845.5474
A69: 1726 | B69: 17.03 | D69: 1011.764 | F69: 17 | I69: 450 | J69: =I69*D69 -> 455293.8 | K69: 91058.76 | L69: 546352.56 | M69: 188175 | N69: =275.8*F69 -> 4688.6 | O69: =3.06*D69 -> 3095.99784 | P69: 8448.2294 | Q69: =(M69+N69+O69+P69)*20% -> 40881.56545 | R69: =M69+N69+O69+P69+Q69 -> 245289.3927
B70: итого | D70: =SUM(D67:D69) -> 2082.605 | J70: =SUM(J67:J69) -> 937172.25 | K70: =SUM(K67:K69) -> 187434.45 | L70: 1124606.7 | M70: 468112.5 | N70: 9653 | O70: 6372.7713 | P70: 17389.75175 | Q70: 100305.6046 | R70: 601833.6277
A72: ООО-9
A73: 1642 | B73: 13.03 | D73: 59.885 | F73: 1 | I73: 450 | J73: =I73*D73 -> 26948.25 | K73: 5389.65 | L73: 32337.9 | M73: 10584 | N73: =275.8*F73 -> 275.8 | O73: =3.06*D73 -> 183.2481 | P73: 500.03975 | Q73: =(M73+N73+O73+P73)*20% -> 2308.61757 | R73: =M73+N73+O73+P73+Q73 -> 13851.70542
A74: 1447 | B74: 3.03 | D74: 2473.065 | F74: 21 | I74: 450 | J74: 1112879.25 | K74: 222575.85 | L74: 1335455.1 | M74: 683333.7 | N74: 5791.8 | O74: 7567.5789 | P74: 20650.09275 | Q74: 143468.6343 | R74: 860811.806
A75: 1643 | B75: 13.03 | D75: 646.045 | F75: 11 | I75: 450 | J75: 290720.25 | K75: 58144.05 | L75: 348864.3 | M75: 114483.6 | N75: 3033.8 | O75: 1976.8977 | P75: 5394.47575 | Q75: 24977.75469 | R75: 149866.5281
A76: 1480 | B76: 5.03 | D76: 297.443 | F76: 5 | I76: 450 | J76: 133849.35 | K76: =J76*20% -> 26769.87 | L76: 160619.22 | M76: 82728 | N76: 1379 | O76: 910.17558 | P76: 2483.64905 | Q76: 17500.16493 | R76: 105000.9896
A77: 1446 | B77: 3.03 | D77: 1804.978 | F77: 30 | I77: 450 | J77: 812240.1 | K77: 162448.02 | L77: 974688.12 | M77: 498849.9 | N77: 8274 | O77: 5523.23268 | P77: 15071.5663 | Q77: 105543.7398 | R77: 633262.4388
A78: 1847 | B78: 21.03 | D78: 1001.192 | F78: 16 | I78: 450 | J78: 450536.4 | K78: 90107.28 | L78: 540643.68 | M78: 77271.1 | N78: 4412.8 | O78: 3063.64752 | P78: 8359.9532 | Q78: 18621.50014 | R78: 111729.0009
A79: 1466 | B79: 4.03 | D79: 3084.536 | F79: 26 | I79: 450 | J79: 1388041.2 | K79: 277608.24 | L79: 1665649.44 | M79: 853200.4 | N79: 7170.8 | O79: 9438.68016 | P79: 25755.8756 | Q79: 179113.1512 | R79: 1074678.907
A80: 1437 | B80: 2.03 | D80: 2350.24 | F80: 20 | I80: 450 | J80: 1057608 | K80: 211521.6 | L80: 1269129.6 | M80: 650794 | N80: 5516 | O80: 7191.7344 | P80: 19624.504 | Q80: 136625.2477 | R80: 819751.4861
A81: 1644 | B81: 13.03 | D81: 529.999 | F81: 9 | I81: 450 | J81: 238499.55 | K81: 47699.91 | L81: 286199.46 | M81: 42517.4 | N81: 2482.2 | O81: 1621.79694 | P81: 4425.49165 | Q81: 10209.37772 | R81: 61256.26631
A82: 1641 | B82: 13.03 | D82: 55.708 | F82: 1 | I82: 450 | J82: 25068.6 | K82: 5013.72 | L82: 30082.32 | M82: 9878.4 | N82: 275.8 | O82: 170.46648 | P82: 465.1618 | Q82: 2157.965656 | R82: 12947.79394
A83: 3000 | B83: 25.03 | D83: 295.729 | F83: 5 | I83: 450 | J83: 133078.05 | K83: 26615.61 | L83: 159693.66 | M83: 64152 | N83: 1379 | O83: 904.93074 | P83: 2469.33715 | Q83: 13781.05358 | R83: 82686.32147
B84: итого | D84: =SUM(D73:D83) -> 12598.82 | J84: =SUM(J73:J83) -> 5669469 | K84: =SUM(K73:K83) -> 1133893.8 | L84: 6803362.8 | M84: 3087792.5 | N84: 39991 | O84: 38552.3892 | P84: 105200.147 | Q84: 654307.2072 | R84: 3925843.243

Sheet Результат
